[Event "Rodostosah WGM 2019"]
[Site "Tekirdag"]
[Date "2019.02.15"]
[Round "8.8"]
[White "Prohorov, Olexandr"]
[Black "Duran, Esma Doga"]
[Result "1/2-1/2"]
[ECO "D45"]
[WhiteElo "2146"]
[BlackElo "2005"]
[Annotator "NA"]
[PlyCount "61"]
[EventDate "2019.02.08"]
[EventType "schev"]
[EventCountry "TUR"]
[SourceTitle "playchess.com"]
[Source "ChessBase"]
[SourceQuality "1"]
[TimeControl "5400+30"]

1. d4 {[%emt 0:00:30]} d5 {[%emt 0:02:30]} 2. c4 {[%emt 0:06:30]} c6 {[%emt 0:00:00]} 3. Nc3 {[%emt 0:01:30]} Nf6 {[%emt 0:00:00]} 4. e3 {[%emt 0:00:00]} e6 {[%emt 0:01:30]} 5. Nf3 {[%emt 0:00:00]} Nbd7 {[%emt 0:00:30]} 6. Qc2 {[%emt 0:00:30]} Be7 {[%emt 0:00:30]} 7. Bd3 {[%emt 0:04:30]} dxc4 {[%emt 0:02:30]} 8. Bxc4 {[%emt 0:06:30]} b5 {[%emt 0:00:30]} 9. Bd3 {[%emt 0:01:30]} Bb7 {[%emt 0:04:30]} 10. a3 {[%emt 0:02:30]} a6 {[%emt 0:02:30]} 11. b4 {[%emt 0:03:30]} Bd6 {[%emt 0:02:30]} 12. O-O {[%emt 0:05:30]} O-O {[%emt 0:02:30]} 13. h3 {[%emt 0:10:30]} Qe7 {[%emt 0:02:30]} 14. Ng5 {[%emt 0:06:30]} h6 {[%emt 0:00:30]} 15. Nge4 {[%emt 0:00:30]} Bc7 {[%emt 0:03:30]} 16. Nc5 {[%emt 0:00:30]} Nxc5 {[%emt 0:00:00]} 17. dxc5 {[%emt 0:00:00]} Rad8 {[%emt 0:01:00]} 18. Bb2 {[%emt 0:01:00]} e5 {[%emt 0:02:30]} 19. Rad1 {[%emt 0:04:30]} Bc8 {[%emt 0:01:30]} 20. Bf5 {[%emt 0:15:30]} Be6 {[%emt 0:01:30]} 21. Ne2 {[%emt 0:02:30]} Nd5 {[%emt 0:16:30]} 22. Ng3 {[%emt 0:03:30]} Qf6 {[%emt 0:08:30]} 23. Bxe6 {[%emt 0:06:13]} Qxe6 {[%emt 0:00:00]} 24. Qf5 {[%emt 0:00:00]} Qe7 {[%emt 0:08:00]} 25. e4 {[%emt 0:02:37]} Nf4 {[%emt 0:01:30]} 26. Qg4 {[%emt 0:00:16]} Qg5 {[%emt 0:27:39]} 27. Qf3 {[%emt 0:02:40]} h5 {[%emt 0:02:07]} 28. Nf5 {[%emt 0:02:07]} Rxd1 {[%emt 0:00:39]} 29. Rxd1 {[%emt 0:00:42]} Rd8 {[%emt 0:00:07]} 30. Nd6 {[%emt 0:06:47]} Bxd6 {[%emt 0:01:19]} 31. Rxd6 {[%emt 0:02:04]} 1/2-1/2

[Event "Rodostosah WGM 2019"]
[Site "Tekirdag"]
[Date "2019.02.15"]
[Round "8.9"]
[White "Shkuran, Danylo"]
[Black "Anacoglu, Cisel"]
[Result "1-0"]
[ECO "E61"]
[WhiteElo "2368"]
[BlackElo "1962"]
[Annotator "NA"]
[PlyCount "89"]
[EventDate "2019.02.08"]
[EventType "schev"]
[EventCountry "TUR"]
[SourceTitle "playchess.com"]
[Source "ChessBase"]
[SourceQuality "1"]
[TimeControl "5400+30"]

1. d4 {[%emt 0:00:30]} Nf6 {[%emt 0:01:30]} 2. c4 {[%emt 0:00:30]} g6 {[%emt 0:00:30]} 3. Nf3 {[%emt 0:00:30]} Bg7 {[%emt 0:00:30]} 4. Nc3 {[%emt 0:00:30]} O-O {[%emt 0:00:00]} 5. e3 {[%emt 0:00:00]} d6 {[%emt 0:00:00]} 6. Be2 {[%emt 0:01:00]} c5 {[%emt 0:00:30]} 7. O-O {[%emt 0:00:30]} Na6 {[%emt 0:00:00]} 8. b3 {[%emt 0:02:30]} Bd7 {[%emt 0:04:00]} 9. Bb2 {[%emt 0:00:30]} Rb8 {[%emt 0:02:30]} 10. Qd2 {[%emt 0:08:30]} Nc7 {[%emt 0:02:30]} 11. a4 {[%emt 0:10:30]} b6 {[%emt 0:04:30]} 12. Rfd1 {[%emt 0:08:30]} Bc6 {[%emt 0:05:30]} 13. Qc2 {[%emt 0:08:30]} e6 {[%emt 0:24:30]} 14. dxc5 {[%emt 0:17:30]} bxc5 {[%emt 0:00:30]} 15. Nb5 {[%emt 0:00:30]} Be4 {[%emt 0:14:30]} 16. Qc1 {[%emt 0:14:30]} Nxb5 {[%emt 0:05:30]} 17. axb5 {[%emt 0:00:30]} Qe7 {[%emt 0:04:30]} 18. Bc3 {[%emt 0:06:20]} Ne8 {[%emt 0:18:07]} 19. Ra2 {[%emt 0:06:53]} Ra8 {[%emt 0:06:55]} 20. Qb2 {[%emt 0:03:46]} Bxc3 {[%emt 0:03:21]} 21. Qxc3 {[%emt 0:00:06]} f5 {[%emt 0:00:01]} 22. Nd2 {[%emt 0:01:52]} Qf6 {[%emt 0:00:28]} 23. Nxe4 {[%emt 0:03:00]} fxe4 {[%emt 0:00:04]} 24. Qxf6 {[%emt 0:00:12]} Rxf6 {[%emt 0:00:00]} 25. Rda1 {[%emt 0:00:01]} Rf7 {[%emt 0:00:22]} 26. Bg4 {[%emt 0:00:36]} Re7 {[%emt 0:01:24]} 27. Ra6 {[%emt 0:02:06]} h5 {[%emt 0:00:30]} 28. Bd1 {[%emt 0:01:00]} d5 {[%emt 0:00:40]} 29. cxd5 {[%emt 0:01:43]} exd5 {[%emt 0:00:34]} 30. Rxg6+ {[%emt 0:00:13]} Ng7 {[%emt 0:00:32]} 31. Rc6 {[%emt 0:01:22]} Ne6 {[%emt 0:00:29]} 32. Bxh5 {[%emt 0:00:36]} d4 {[%emt 0:00:20]} 33. Bg4 {[%emt 0:00:33]} Nc7 {[%emt 0:00:36]} 34. Rxc5 {[%emt 0:00:11]} d3 {[%emt 0:00:21]} 35. Kf1 {[%emt 0:00:57]} Rh7 {[%emt 0:00:44]} 36. h3 {[%emt 0:00:48]} Re7 {[%emt 0:00:30]} 37. Ke1 {[%emt 0:00:00]} Kg7 {[%emt 0:00:07]} 38. Kd2 {[%emt 0:00:13]} Rf8 {[%emt 0:00:46]} 39. f3 {[%emt 0:00:17]} exf3 {[%emt 0:00:28]} 40. gxf3 {[%emt 0:00:42]} Ra8 {[%emt 0:00:36]} 41. b6 {[%emt 0:00:47]} Ne6 {[%emt 0:00:33]} 42. Re5 {[%emt 0:00:26]} Kf6 {[%emt 0:00:49]} 43. Rxe6+ {[%emt 0:00:06]} Rxe6 {[%emt 0:00:12]} 44. Bxe6 {[%emt 0:00:30]} Kxe6 {[%emt 0:00:00]} 45. bxa7 {[%emt 0:00:00]} 1-0

[Event "Rodostosah WGM 2019"]
[Site "Tekirdag"]
[Date "2019.02.15"]
[Round "8.10"]
[White "Brankovic, Dejan"]
[Black "Sade, Defne"]
[Result "1-0"]
[ECO "C44"]
[WhiteElo "2318"]
[BlackElo "1916"]
[Annotator "NA"]
[PlyCount "195"]
[EventDate "2019.02.08"]
[EventType "schev"]
[EventCountry "TUR"]
[SourceTitle "playchess.com"]
[Source "ChessBase"]
[SourceQuality "1"]
[TimeControl "5400+30"]

1. e4 {[%emt 0:00:30]} e5 {[%emt 0:04:30]} 2. Nf3 {[%emt 0:00:30]} Nc6 {[%emt 0:00:30]} 3. c3 {[%emt 0:00:30]} Nf6 {[%emt 0:00:30]} 4. d4 {[%emt 0:00:00]} d6 {[%emt 0:16:30]} 5. Bd3 {[%emt 0:03:00]} Be7 {[%emt 0:00:30]} 6. O-O {[%emt 0:01:30]} O-O {[%emt 0:00:00]} 7. Nbd2 {[%emt 0:15:30]} Re8 {[%emt 0:00:00]} 8. h3 {[%emt 0:00:30]} Bf8 {[%emt 0:00:30]} 9. Re1 {[%emt 0:00:30]} g6 {[%emt 0:06:30]} 10. dxe5 {[%emt 0:18:30]} dxe5 {[%emt 0:07:30]} 11. Bc4 {[%emt 0:02:30]} Be6 {[%emt 0:02:30]} 12. Bxe6 {[%emt 0:02:30]} Rxe6 {[%emt 0:03:30]} 13. Qb3 {[%emt 0:00:30]} b6 {[%emt 0:00:30]} 14. Ng5 {[%emt 0:05:30]} Re7 {[%emt 0:00:30]} 15. Nc4 {[%emt 0:02:30]} h6 {[%emt 0:02:30]} 16. Qa4 {[%emt 0:03:30]} Qe8 {[%emt 0:00:30]} 17. Nf3 {[%emt 0:00:00]} Rd8 {[%emt 0:06:30]} 18. b3 {[%emt 0:05:00]} Re6 {[%emt 0:02:30]} 19. Bb2 {[%emt 0:01:30]} Nd7 {[%emt 0:01:30]} 20. b4 {[%emt 0:02:30]} Nf6 {[%emt 0:03:30]} 21. Qc2 {[%emt 0:06:30]} a6 {[%emt 0:11:30]} 22. Rad1 {[%emt 0:02:30]} Rxd1 {[%emt 0:00:30]} 23. Rxd1 {[%emt 0:00:30]} b5 {[%emt 0:00:00]} 24. Ne3 {[%emt 0:01:30]} Rd6 {[%emt 0:00:00]} 25. Rxd6 {[%emt 0:06:34]} Bxd6 {[%emt 0:00:30]} 26. a3 {[%emt 0:00:04]} Nb8 {[%emt 0:05:30]} 27. c4 {[%emt 0:01:11]} c6 {[%emt 0:01:30]} 28. c5 {[%emt 0:04:57]} Bc7 {[%emt 0:00:30]} 29. Nh2 {[%emt 0:02:41]} Nbd7 {[%emt 0:02:30]} 30. Nhg4 {[%emt 0:00:32]} h5 {[%emt 0:01:30]} 31. Nh2 {[%emt 0:00:16]} Nh7 {[%emt 0:01:37]} 32. Nf3 {[%emt 0:00:23]} Qe7 {[%emt 0:02:12]} 33. Bc3 {[%emt 0:00:34]} Nhf8 {[%emt 0:04:44]} 34. a4 {[%emt 0:00:28]} Kh7 {[%emt 0:02:45]} 35. axb5 {[%emt 0:01:34]} axb5 {[%emt 0:00:06]} 36. Qa2 {[%emt 0:00:42]} f6 {[%emt 0:01:39]} 37. Qa8 {[%emt 0:01:36]} Nb8 {[%emt 0:01:35]} 38. g3 {[%emt 0:02:48]} Qd7 {[%emt 0:00:45]} 39. Qa2 {[%emt 0:01:47]} Qe6 {[%emt 0:00:31]} 40. Qa7 {[%emt 0:00:35]} Qd7 {[%emt 0:00:31]} 41. Kg2 {[%emt 0:00:23]} Ne6 {[%emt 0:02:36]} 42. Qa2 {[%emt 0:00:08]} Nf8 {[%emt 0:00:36]} 43. Qc2 {[%emt 0:02:31]} Ne6 {[%emt 0:00:39]} 44. Qb3 {[%emt 0:00:25]} Nf8 {[%emt 0:00:38]} 45. Bb2 {[%emt 0:00:54]} Qe6 {[%emt 0:01:38]} 46. Qa3 {[%emt 0:00:39]} Qd7 {[%emt 0:00:09]} 47. Bc1 {[%emt 0:00:00]} Ne6 {[%emt 0:01:01]} 48. Nc2 {[%emt 0:01:21]} Bd8 {[%emt 0:03:25]} 49. Bd2 {[%emt 0:00:40]} Be7 {[%emt 0:00:23]} 50. Qa8 {[%emt 0:01:20]} Qc7 {[%emt 0:00:29]} 51. Be3 {[%emt 0:00:41]} Bf8 {[%emt 0:00:35]} 52. Na1 {[%emt 0:00:08]} Qc8 {[%emt 0:00:32]} 53. Nb3 {[%emt 0:00:12]} Nd8 {[%emt 0:01:23]} 54. Na5 {[%emt 0:01:50]} Qc7 {[%emt 0:00:06]} 55. Nb3 {[%emt 0:00:00]} Qb7 {[%emt 0:00:32]} 56. Qa2 {[%emt 0:00:45]} Qf7 {[%emt 0:00:13]} 57. Qd2 {[%emt 0:00:18]} Qd7 {[%emt 0:00:09]} 58. Qb2 {[%emt 0:00:24]} Bg7 {[%emt 0:00:09]} 59. Qc2 {[%emt 0:00:26]} Qf7 {[%emt 0:00:18]} 60. Na5 {[%emt 0:00:30]} Qd7 {[%emt 0:00:08]} 61. Bd2 {[%emt 0:00:00]} Bf8 {[%emt 0:01:01]} 62. Bc3 {[%emt 0:00:05]} Bg7 {[%emt 0:00:00]} 63. Nb3 {[%emt 0:00:36]} Ne6 {[%emt 0:00:00]} 64. Qb1 {[%emt 0:00:52]} Nd8 {[%emt 0:00:06]} 65. Bd2 {[%emt 0:00:33]} Qe6 {[%emt 0:00:29]} 66. Na5 {[%emt 0:00:29]} Qd7 {[%emt 0:00:05]} 67. Bc3 {[%emt 0:00:14]} Qe6 {[%emt 0:00:11]} 68. Bxe5 {[%emt 0:00:14]} Nd7 {[%emt 0:00:54]} 69. Bc3 {[%emt 0:00:07]} Nf7 {[%emt 0:00:31]} 70. Qd3 {[%emt 0:00:21]} Nde5 {[%emt 0:00:56]} 71. Bxe5 {[%emt 0:00:49]} fxe5 {[%emt 0:00:02]} 72. Qb3 {[%emt 0:00:31]} Qxb3 {[%emt 0:02:28]} 73. Nxb3 {[%emt 0:00:04]} Kg8 {[%emt 0:00:00]} 74. Na5 {[%emt 0:00:44]} Nd8 {[%emt 0:00:00]} 75. Kf1 {[%emt 0:00:28]} Kf7 {[%emt 0:00:05]} 76. Ke2 {[%emt 0:00:15]} Ke6 {[%emt 0:00:21]} 77. Kd3 {[%emt 0:00:55]} Bf6 {[%emt 0:01:00]} 78. Ke3 {[%emt 0:00:48]} Bg7 {[%emt 0:02:21]} 79. h4 {[%emt 0:00:51]} Kd7 {[%emt 0:00:33]} 80. Kd3 {[%emt 0:00:47]} Ke6 {[%emt 0:00:33]} 81. Ng5+ {[%emt 0:00:28]} Kf6 {[%emt 0:00:47]} 82. f4 {[%emt 0:00:58]} Ke7 {[%emt 0:00:04]} 83. Nf3 {[%emt 0:00:16]} exf4 {[%emt 0:01:23]} 84. gxf4 {[%emt 0:00:30]} Ke6 {[%emt 0:00:16]} 85. Nb3 {[%emt 0:00:14]} Bb2 {[%emt 0:00:43]} 86. Nbd4+ {[%emt 0:00:09]} Ke7 {[%emt 0:00:29]} 87. Ne5 {[%emt 0:00:17]} Kf6 {[%emt 0:00:24]} 88. Nexc6 {[%emt 0:00:31]} Nxc6 {[%emt 0:00:40]} 89. Nxc6 {[%emt 0:00:30]} Bc1 {[%emt 0:00:00]} 90. e5+ {[%emt 0:00:00]} Kf7 {[%emt 0:00:53]} 91. Ke4 {[%emt 0:00:32]} Bd2 {[%emt 0:00:09]} 92. f5 {[%emt 0:00:00]} Be1 {[%emt 0:00:30]} 93. e6+ {[%emt 0:01:17]} Kf6 {[%emt 0:00:13]} 94. fxg6 {[%emt 0:00:35]} Kxg6 {[%emt 0:00:13]} 95. Nd4 {[%emt 0:00:31]} Bxb4 {[%emt 0:01:27]} 96. c6 {[%emt 0:00:08]} Ba5 {[%emt 0:00:41]} 97. Nxb5 {[%emt 0:00:04]} Kf6 {[%emt 0:00:17]} 98. c7 {[%emt 0:00:18]} 1-0

[Event "Rodostosah WGM 2019"]
[Site "Tekirdag"]
[Date "2019.02.16"]
[Round "10.6"]
[White "Prohorov, Olexandr"]
[Black "Caglar, Sila"]
[Result "0-1"]
[ECO "B22"]
[WhiteElo "2146"]
[BlackElo "2062"]
[Annotator "NA"]
[PlyCount "58"]
[EventDate "2019.02.08"]
[EventType "schev"]
[EventCountry "TUR"]
[SourceTitle "playchess.com"]
[Source "ChessBase"]
[SourceQuality "1"]
[TimeControl "5400+30"]

1. e4 c5 2. c3 Nf6 3. e5 Nd5 4. Nf3 d6 5. d4 cxd4 6. Qxd4 e6 7. Nbd2 a6 8. Nc4 Nc6 9. Qe4 $11 dxe5 10. Ncxe5 Nxe5 11. Nxe5 Bd6 12. Bd3 Nf6 13. Qa4+ b5 14. Bxb5+ axb5 15. Qxb5+ Kf8 16. Nc4 Ba6 17. Qc6 Be7 18. Be3 Qd5 19. Qxd5 Nxd5 20. Nb6 Nxb6 21. Bxb6 Rb8 22. Be3 Rxb2 23. O-O-O Rb7 24. Rd4 Ba3+ 25. Kd2 Rb2+ 26. Kd1 Ke7 27. Bc1 Rxa2 28. Ra4 Rd8+ 29. Ke1 Re2+ 0-1

[Event "Rodostosah WGM 2019"]
[Site "Tekirdag"]
[Date "2019.02.16"]
[Round "10.7"]
[White "Shkuran, Danylo"]
[Black "Kocyigit, Buse Naz"]
[Result "1-0"]
[ECO "B01"]
[WhiteElo "2368"]
[BlackElo "2023"]
[Annotator "NA"]
[PlyCount "43"]
[EventDate "2019.02.08"]
[EventType "schev"]
[EventCountry "TUR"]
[SourceTitle "playchess.com"]
[Source "ChessBase"]
[SourceQuality "1"]
[TimeControl "5400+30"]

1. e4 d5 2. exd5 Qxd5 3. Nc3 Qd6 4. d4 Nf6 5. Bc4 c6 6. Nf3 Bg4 7. h3 Bxf3 8. Qxf3 Qxd4 9. Qe2 Nbd7 10. Be3 Qe5 11. O-O-O e6 12. f4 Qc7 13. f5 e5 {[#]} 14. Bxf7+ $1 Kxf7 15. Qc4+ Ke8 {[#]} 16. Nb5 $1 Qc8 $18 (16... Qd8 $142) 17. Qe6+ Kd8 18. Nxa7 Qc7 19. Rxd7+ Qxd7 20. Bb6+ Qc7 21. Rd1+ Nd5 22. Rxd5+ 1-0

[Event "Rodostosah WGM 2019"]
[Site "Tekirdag"]
[Date "2019.02.16"]
[Round "10.8"]
[White "Brankovic, Dejan"]
[Black "Duran, Esma Doga"]
[Result "1-0"]
[ECO "A05"]
[WhiteElo "2318"]
[BlackElo "2005"]
[Annotator "NA"]
[PlyCount "113"]
[EventDate "2019.02.08"]
[EventType "schev"]
[EventCountry "TUR"]
[SourceTitle "playchess.com"]
[Source "ChessBase"]
[SourceQuality "1"]
[TimeControl "5400+30"]

1. Nf3 Nf6 2. g3 b5 3. Bg2 Bb7 4. O-O e6 5. d3 c5 6. e4 d5 7. exd5 Qxd5 8. a4 b4 9. Nbd2 Be7 10. Nc4 Qd8 11. Re1 O-O 12. Nfd2 Bxg2 13. Kxg2 Qd5+ 14. Qf3 Nc6 15. Nb3 Qxf3+ 16. Kxf3 Nd4+ 17. Nxd4 cxd4 $14 18. b3 Nd5 19. Bb2 Nc3 20. Bxc3 dxc3 21. a5 Bc5 22. a6 Rfd8 23. Re5 Rd5 24. Ra5 Rc8 25. Rxd5 exd5 26. Ne3 Bxe3 27. fxe3 Rc6 28. Rxd5 Kf8 29. Ra5 Ke7 30. d4 Rf6+ 31. Ke2 Rh6 32. h4 Rg6 33. Rb5 Rxa6 34. Rxb4 Rg6 35. Rb7+ Ke8 36. Kf3 Rf6+ 37. Kg2 Re6 38. Rxa7 Rxe3 39. Kf2 Re4 40. Rc7 Rxd4 41. Rxc3 Ke7 42. Ke3 Rg4 43. Kf3 h5 44. Rc5 Rg6 45. Rxh5 Rf6+ 46. Ke4 Rg6 47. Rg5 Rc6 48. c4 Rb6 49. Rb5 Rg6 50. Rb7+ Ke8 51. Kf3 Rf6+ 52. Kg2 Rd6 53. c5 Rd2+ 54. Kf3 Rd3+ 55. Kf4 Rc3 56. b4 g6 57. g4 1-0

[Event "Rodostosah WGM 2019"]
[Site "Tekirdag"]
[Date "2019.02.16"]
[Round "10.9"]
[White "Eric, Jovana"]
[Black "Anacoglu, Cisel"]
[Result "0-1"]
[ECO "D02"]
[WhiteElo "2222"]
[BlackElo "1962"]
[Annotator "NA"]
[PlyCount "90"]
[EventDate "2019.02.08"]
[EventType "schev"]
[EventCountry "TUR"]
[SourceTitle "playchess.com"]
[Source "ChessBase"]
[SourceQuality "1"]
[TimeControl "5400+30"]

1. d4 Nf6 2. Nf3 g6 3. Nbd2 d5 4. e3 Bg7 5. b4 a5 6. b5 c5 7. bxc6 bxc6 8. Be2 O-O 9. Ba3 Re8 10. O-O Nbd7 11. c4 Ne4 12. Nxe4 dxe4 13. Nd2 Nf6 14. Rb1 h5 15. Qc2 Qc7 16. Rb2 e5 17. Nxe4 Nxe4 18. Qxe4 Bf5 $17 19. Qf3 exd4 20. exd4 Bxd4 21. Rd2 Rad8 22. Bd1 Be4 23. Qh3 Be5 24. Bc1 Bf5 25. Qb3 Bxh2+ 26. Kh1 Be5 27. Bf3 Rxd2 28. Bxd2 Qd8 29. Rd1 Qh4+ 30. Kg1 Bh2+ 31. Kf1 Be5 32. Be3 Rb8 33. Bb6 a4 34. Qe3 Qxc4+ 35. Kg1 Qe6 36. Qc5 Bg7 37. g3 Bf8 38. Qd4 Bg7 39. Qc5 Bf8 40. Qa5 Bg4 41. Re1 Qf5 42. Bxc6 Qf6 43. Ba7 Qxc6 44. Bxb8 Bh3 45. f3 Qc2 0-1

[Event "Rodostosah WGM 2019"]
[Site "Tekirdag"]
[Date "2019.02.16"]
[Round "10.10"]
[White "Dimitrijevic, Aleksandra"]
[Black "Sade, Defne"]
[Result "1-0"]
[ECO "A06"]
[WhiteElo "2175"]
[BlackElo "1916"]
[Annotator "NA"]
[PlyCount "131"]
[EventDate "2019.02.08"]
[EventType "schev"]
[EventCountry "TUR"]
[SourceTitle "playchess.com"]
[Source "ChessBase"]
[SourceQuality "1"]
[TimeControl "5400+30"]

1. Nf3 d5 2. d3 c6 (2... c5 3. g3 Nc6 4. Bg2 e5 5. O-O Be7 6. c4 d4 7. e3 Nf6 8. exd4 exd4 9. Bg5 O-O 10. Re1 h6 11. Bxf6 Bxf6 12. Nbd2 Bf5 13. Ne4 Be7 14. a3 Qc7 15. Nfd2 Rae8 16. f4 Bc8 {0-1 (49) Ponkratov,P (2630)-Yilmaz,M (2636) St Petersburg 2018}) 3. c3 Nf6 4. h3 Bf5 5. Bf4 h6 6. Nbd2 {A06: Réti Opening:1 Nf3 d5} Nbd7 7. Qc2 $146 ({Predecessor:} 7. g4 Bg6 8. Bg2 e6 9. O-O Be7 10. Qc2 {1-0 (52) Nguyen,T (2362)-Le,K (2250) Ho Chi Minh City 2009}) 7... e6 8. g4 Bg6 9. Bg2 Be7 10. Bg3 a5 11. a4 O-O 12. O-O b5 13. e4 dxe4 14. dxe4 Qb6 15. Kh1 Nc5 16. Ne5 Bh7 $1 17. b4 Nb7 18. bxa5 Rxa5 19. Rfb1 Qa6 20. axb5 $14 cxb5 21. Rxa5 Nxa5 22. Qb2 Nc4 23. Nexc4 bxc4 24. Qb7 Qxb7 25. Rxb7 Rd8 26. Nxc4 Bf8 27. f3 Rd3 28. Rb8 Rxc3 29. Nb6 Rd3 30. Bf2 Rb3 31. e5 Rxb6 32. Rxb6 Nd7 33. Rb5 Bd3 34. Ra5 Bb4 35. Ra8+ Kh7 36. f4 Nc5 37. Rb8 Na6 38. Rd8 Bb1 39. Kh2 Bc5 40. Be1 Be3 41. Kg3 g5 42. fxg5 hxg5 43. Kf3 Bf4 44. Bg3 Bxg3 45. Kxg3 Nc5 46. Rc8 Nd7 47. Rc1 Bg6 48. Re1 Nc5 49. Kf3 Nd3 50. Re3 Nf4 51. Bf1 Nd5 52. Rb3 Kg7 53. Rb7 Nc3 54. Ra7 Ne4 55. Ke3 Nc3 56. Bc4 Kh6 57. Kd4 Ne4 58. Bd3 Nf2 59. Bxg6 Kxg6 60. Ra3 Nd1 61. Rf3 Nb2 62. Kc5 Na4+ 63. Kb5 Nb2 64. Kb4 Kg7 65. Kb3 Nd1 66. Kc2 1-0